bitfinex/quotes_ETHUSD_20250425
["timestamp","ask_amount","ask_price","bid_price","bid_amount"]
[1745590020972,0.05,1776.9,1776.8,21.06078739]
[1745590021172,0.05,1776.9,1776.8,23.72969322]
[1745590022702,0.05,1776.9,1776.8,11.18190583]
[1745590022906,0.17793784,1776.9,1776.8,11.18190583]
[1745590023393,0.05,1776.9,1776.8,16.81000128]
[1745590023597,0.05,1776.9,1776.8,22.97949322]
[1745590024856,0.05,1776.9,1776.8,23.40448477]
[1745590025799,0.05,1776.9,1776.8,24.23048477]
[1745590026921,0.05,1776.9,1776.8,24.22948477]
[1745590029220,0.05,1777.9,1777.0,5.62746201]
[1745590029429,0.05,1777.9,1777.8,6.16949194]
[1745590029576,0.05,1777.9,1777.7,5.62512359]
[1745590029577,0.11121084,1777.8,1777.7,3.0]
[1745590029781,0.05,1777.9,1777.7,5.512]
[1745590032319,0.05,1777.9,1777.8,14.79442162]
[1745590032495,0.05,1777.9,1777.8,17.42955581]
[1745590033110,0.05,1777.9,1777.8,5.63513419]
[1745590033315,0.05,1777.9,1777.8,3.0]
[1745590033818,0.05,1777.9,1777.8,8.62492968]
[1745590034015,0.05,1777.9,1777.8,3.0]
[1745590034220,0.05,1777.9,1777.8,8.62492968]
[1745590034602,0.05,1777.9,1777.8,3.8197]
[1745590034805,0.05,1777.9,1777.8,10.98229322]
[1745590034988,0.05,1777.9,1777.8,10.16259322]
[1745590035812,0.05,1777.9,1777.8,16.33208516]
[1745590038292,0.05,1777.9,1777.8,14.79442162]
[1745590041398,0.4117543,1778.2,1778.1,14.79347259]
[1745590041640,0.4117543,1778.2,1778.1,31.54849194]
[1745590041825,0.4117543,1778.2,1778.1,25.379]
[1745590042599,0.4117543,1778.2,1778.1,22.379]
[1745590042802,1.1665543,1778.2,1778.1,22.378]
[1745590043188,1.27854303,1778.2,1778.1,22.378]
[1745590043992,1.27854303,1778.2,1778.0,5.506]
[1745590044188,1.27854303,1778.2,1778.0,11.68082595]
[1745590044521,0.52374303,1778.2,1778.0,17.8501812]
[1745590044721,0.4117543,1778.2,1778.0,12.22609194]
[1745590044890,0.11211113,1778.1,1778.0,17.85029435]
[1745590045093,0.4117543,1778.2,1778.1,5.62398065]
[1745590045412,0.4117543,1778.2,1778.1,2.3474275]
[1745590045615,0.4117543,1778.2,1778.0,6.0566]
[1745590045941,0.4117543,1778.2,1778.0,17.85016484]
[1745590046155,0.4117543,1778.2,1778.0,12.22609194]
[1745590046297,0.4117543,1778.2,1778.0,11.67549194]
[1745590046494,0.4117543,1778.2,1778.1,5.62398065]
[1745590046741,0.4117543,1778.2,1778.0,17.29956422]
[1745590047030,0.4117543,1778.2,1778.1,5.62398065]
[1745590047197,0.4117543,1778.2,1778.1,11.73133514]
[1745590047606,0.4117543,1778.2,1778.1,10.91633514]
[1745590047834,1.2044543,1778.2,1778.0,5.506]
[1745590048072,1.2044543,1778.2,1777.9,5.506]
[1745590048357,1.2044543,1778.2,1777.8,5.506]
[1745590048358,0.94010138,1778.1,1777.8,5.506]
[1745590048868,0.94010138,1778.1,1777.4,31.66654642]
[1745590048869,6.56410372,1778.1,1777.4,16.871]
[1745590049018,0.8036,1778.0,1777.5,5.506]
[1745590049421,0.11215135,1777.9,1777.5,5.506]
[1745590051615,0.8179,1777.8,1777.5,5.506]
[1745590052054,0.10925956,1777.7,1777.5,5.506]
[1745590054537,0.7784,1777.6,1777.5,5.506]
[1745590055877,3.0,1778.0,1777.5,5.506]
[1745590056172,0.12625364,1777.9,1777.5,5.506]
[1745590056375,5.62478776,1777.9,1777.5,5.506]
[1745590056576,5.93899442,1778.0,1777.5,5.506]
[1745590056736,0.12582919,1777.9,1777.5,5.506]
[1745590056936,5.75065595,1777.9,1777.5,5.506]
[1745590057138,0.12582919,1777.9,1777.5,5.506]
[1745590057352,5.75054069,1777.9,1777.5,5.506]
[1745590057769,0.12582919,1777.9,1777.5,5.506]
[1745590057981,0.12582919,1777.9,1777.5,7.7437]
[1745590058278,6.35020814,1778.2,1777.5,7.7437]
[1745590058474,5.62441684,1778.0,1777.6,5.507]
[1745590058658,0.771,1777.9,1777.6,5.507]
[1745590058975,6.71039631,1777.9,1777.6,5.507]
[1745590059214,1.08563881,1777.9,1777.6,5.507]
[1745590059383,6.71035012,1777.9,1777.6,5.507]
[1745590059537,5.62521945,1777.8,1777.4,22.378]
[1745590059737,0.8117,1777.7,1777.4,22.378]
[1745590060559,0.8117,1777.7,1777.4,24.6158]
[1745590060963,6.43705628,1777.7,1777.4,22.378]
[1745590061674,12.0626041,1777.7,1777.4,22.378]
[1745590061980,5.62587904,1777.5,1777.1,0.5627462]
[1745590062162,0.7735,1777.4,1777.2,5.507]
[1745590064785,0.8228,1777.9,1777.2,5.507]
[1745590065084,0.8228,1777.9,1777.3,0.5507]
[1745590065284,0.8228,1777.9,1777.4,11.79558468]
[1745590065750,0.8228,1777.9,1777.4,11.79548375]
[1745590065946,0.8228,1777.9,1777.5,5.62565901]
[1745590066149,0.8228,1777.9,1777.6,11.67449194]
[1745590066459,0.4117543,1778.2,1777.6,11.67449194]
[1745590066460,1.1850543,1778.2,1777.7,6.7925416]
[1745590066785,0.4117543,1778.2,1777.9,11.79389146]
[1745590066995,0.4117543,1778.2,1778.1,11.79347259]
[1745590067289,0.4117543,1778.2,1778.1,14.79347259]
[1745590067499,0.4117543,1778.2,1778.1,9.93349194]
[1745590067668,0.4117543,1778.2,1778.1,12.60215503]
[1745590068380,0.4117543,1778.2,1778.1,5.66866309]
[1745590068582,0.4117543,1778.2,1778.1,3.0]
[1745590069366,0.4117543,1778.2,1778.1,14.79347259]
[1745590070458,0.4117543,1778.2,1778.1,15.20981835]
[1745590071585,0.4117543,1778.2,1778.1,9.16949194]
[1745590071885,0.4117543,1778.2,1778.1,3.0]
[1745590072086,0.4117543,1778.2,1778.1,1.41291245]
[1745590072390,0.4117543,1778.2,1778.0,5.505]
[1745590072752,0.4117543,1778.2,1777.9,3.7883]
[1745590072962,0.4117543,1778.2,1778.0,5.504]
[1745590073159,0.4117543,1778.2,1778.1,5.504]
[1745590075201,0.4117543,1778.2,1778.1,6.0544]
[1745590077561,0.4117543,1778.2,1778.1,11.67838065]
[1745590078587,0.4117543,1778.2,1778.1,6.0544]
[1745590080020,0.4117543,1778.2,1778.1,6.48644202]
[1745590081118,0.4117543,1778.2,1778.1,7.31044202]
[1745590081622,0.4117543,1778.2,1778.1,6.48644202]
[1745590081824,0.4117543,1778.2,1778.1,12.11042267]
[1745590082392,0.4117543,1778.2,1778.1,21.27991461]
[1745590083111,0.4117543,1778.2,1778.1,9.48644202]
[1745590083326,0.4117543,1778.2,1778.1,15.11042267]
[1745590083622,0.4117543,1778.2,1778.1,21.27991461]
[1745590083800,0.4117543,1778.2,1778.1,22.10101461]
[1745590085329,0.5,1778.4,1778.3,6.41504814]
[1745590085537,0.5,1778.4,1778.3,17.08839734]
[1745590086041,1e-08,1778.4,1778.3,17.63839734]
[1745590086251,1e-08,1778.4,1778.3,17.08839734]
[1745590086414,1e-08,1778.4,1778.3,23.14139734]
[1745590087039,0.05,1778.9,1778.8,9.41656748]
[1745590087338,0.05,1778.9,1778.8,22.59191082]
[1745590089045,0.05,1778.9,1778.8,23.55924038]
[1745590089827,0.7765,1779.8,1779.3,5.61992074]
[1745590090139,0.7765,1779.8,1779.4,5.502]
[1745590091406,0.7765,1779.8,1779.2,6.99239194]
[1745590091602,0.7765,1779.8,1779.3,6.20023919]
[1745590091804,0.7765,1779.8,1779.3,5.501]
[1745590091805,0.7568,1779.7,1779.3,5.501]
[1745590092110,0.7568,1779.7,1779.1,5.501]
[1745590092111,5.62012426,1779.4,1779.1,5.501]
[1745590092314,0.7568,1779.3,1779.1,5.501]
[1745590092522,0.7568,1779.2,1778.7,16.866]
[1745590092730,0.7568,1779.2,1778.8,5.501]
[1745590093546,6.37731107,1779.2,1778.8,5.501]
[1745590093751,0.7767,1779.1,1778.7,16.866]
[1745590093957,6.3975374,1779.1,1778.8,5.501]
[1745590094464,0.7767,1779.1,1778.8,5.501]
[1745590095949,0.7767,1779.1,1778.7,16.866]
[1745590096263,6.42084274,1779.0,1778.7,22.364]
[1745590096426,0.7996,1778.8,1778.2,3.0]
[1745590096630,0.7996,1778.8,1778.3,5.498]
[1745590097041,0.797,1778.6,1778.2,1.04230268]
[1745590097367,0.797,1778.6,1778.3,5.498]
[1745590101371,6.41957425,1778.6,1778.0,3.0]
[1745590101559,6.41957425,1778.6,1778.4,5.498]
[1745590101740,0.797,1778.6,1778.4,5.498]
[1745590101942,6.41944337,1778.6,1778.4,5.498]
[1745590102343,9.16949194,1778.8,1778.1,5.498]
[1745590102547,5.62322922,1778.4,1778.1,5.498]
[1745590102755,3.0,1778.6,1778.1,5.498]
[1745590102959,6.40936437,1778.2,1778.1,5.498]
[1745590103130,0.7857,1778.2,1778.1,5.498]
[1745590107268,6.39382227,1778.6,1778.1,5.498]
[1745590107473,12.0165138,1778.6,1778.1,5.498]
[1745590107675,0.7712,1778.5,1778.1,5.498]
[1745590107843,6.39402929,1778.5,1778.1,5.498]
[1745590108045,5.62350799,1778.3,1777.9,16.863]
[1745590108249,0.7799,1778.2,1778.0,5.499]
[1745590109283,0.7799,1778.2,1778.0,6.60839239]
[1745590109476,0.7799,1778.4,1778.0,6.60839239]
[1745590110596,0.8268,1778.6,1778.0,6.60839239]
[1745590110755,0.8268,1778.6,1778.1,5.62385468]
[1745590111077,0.8268,1778.6,1778.2,6.16949194]
[1745590111279,6.16949194,1779.3,1778.1,5.62383957]
[1745590111280,0.8268,1778.8,1778.6,5.62217311]
[1745590111482,5.61898502,1779.7,1778.6,5.62217311]
[1745590111483,5.61924459,1779.6,1778.7,12.46629194]
[1745590111821,0.8268,1779.6,1778.9,6.16949194]
[1745590112101,0.8268,1779.6,1778.8,8.62146483]
[1745590112393,0.8268,1779.6,1778.9,0.86214648]
[1745590112555,0.8268,1779.6,1779.0,5.6209814]
[1745590112956,6.44605186,1779.6,1778.9,6.16949194]
[1745590113188,0.8268,1779.6,1778.9,11.79091712]
[1745590113496,0.05,1779.9,1778.8,25.48959799]
[1745590113497,5.971,1779.9,1778.8,16.868]
[1745590113698,6.42328764,1779.4,1778.9,5.5]
[1745590113883,6.4232816,1779.4,1778.9,5.5]
[1745590114058,5.62021975,1779.3,1778.9,5.5]
[1745590114395,6.42314825,1779.4,1778.9,5.5]
[1745590114603,0.7856,1779.1,1779.0,5.499]
[1745590114987,6.40641951,1779.1,1779.0,5.499]
[1745590115171,6.40641951,1779.1,1778.9,5.499]
[1745590115377,0.7856,1779.1,1778.9,5.499]
[1745590116398,6.40645416,1779.1,1778.9,5.499]
[1745590116600,5.62138207,1779.0,1778.8,5.499]
[1745590116822,5.62202183,1778.8,1778.5,5.499]
[1745590117109,0.793,1778.6,1778.2,5.499]
[1745590117314,6.415506,1778.6,1778.2,5.499]
[1745590117466,6.41560426,1778.6,1778.2,5.499]
[1745590117975,0.793,1778.6,1778.2,5.499]
[1745590118483,6.41540509,1778.6,1778.2,5.499]
[1745590118684,0.793,1778.6,1778.2,5.499]
[1745590118888,0.793,1778.6,1778.2,6.0489]
[1745590120405,0.793,1778.6,1778.2,5.499]
[1745590120606,0.793,1778.6,1777.9,1.23968501]
[1745590120794,5.62290514,1778.5,1778.2,5.499]
[1745590121686,6.38681598,1778.3,1778.0,5.499]
[1745590121866,0.7633,1778.3,1778.0,5.499]
[1745590122101,0.7633,1778.3,1778.0,6.0489]
[1745590122403,1.08145344,1778.5,1778.0,6.0489]
[1745590122766,0.7672,1778.5,1778.0,6.0489]
[1745590123597,0.7672,1778.5,1778.1,0.7513]
[1745590123799,1.08945344,1778.7,1778.1,12.54462443]
[1745590124003,1.08945344,1778.7,1778.2,1.25446244]
[1745590124198,0.31425344,1778.7,1778.2,6.87797167]
[1745590124503,0.31425344,1778.7,1778.2,1.25446244]
[1745590124702,5.62180938,1778.8,1778.2,1.25446244]
[1745590125130,5.93572313,1778.9,1778.1,0.7513]
[1745590125328,9.41690421,1778.8,1778.3,5.495]
[1745590125528,0.7951,1778.4,1778.3,5.495]
[1745590125729,0.7951,1778.4,1777.9,0.7606]
[1745590126030,0.7726,1778.6,1778.0,5.495]
[1745590126338,0.31425344,1778.6,1778.3,11.79262358]
[1745590126634,0.31425344,1778.6,1778.4,5.495]
[1745590126844,0.31425344,1778.6,1778.4,11.11788257]
[1745590127016,0.31425344,1778.6,1778.5,0.8048]
[1745590127231,0.7726,1779.0,1778.5,0.8048]
[1745590127434,0.7726,1779.0,1778.5,1.43478]
[1745590129397,6.39386097,1779.0,1778.4,5.495]
[1745590129631,12.01523198,1779.0,1778.4,5.495]
[1745590129943,12.01523198,1779.0,1778.5,5.495]
[1745590129944,0.7726,1779.0,1778.5,5.495]
[1745590130643,1.08685344,1779.0,1778.5,5.495]
[1745590131007,0.7726,1779.0,1778.5,5.495]
[1745590131935,12.01523937,1779.0,1778.5,5.495]
[1745590132094,0.7726,1779.0,1778.3,0.788]
[1745590132299,5.62254461,1778.6,1778.3,5.495]
[1745590132607,6.45075055,1778.8,1778.3,5.495]
[1745590133198,5.62208984,1778.7,1778.3,5.495]
[1745590133399,3.0,1778.8,1778.4,0.791]
[1745590133605,8.93630552,1778.8,1778.3,5.495]
[1745590134031,0.31441026,1778.8,1778.3,6.1236]
[1745590135185,0.31441026,1778.8,1778.3,17.9163701]
[1745590135487,4.11051026,1779.0,1778.3,17.9163701]
[1745590136094,4.11051026,1779.0,1778.3,12.29309194]
[1745590136275,1.11051026,1779.0,1778.4,1.22930919]
[1745590136680,6.73166985,1779.0,1778.4,1.22930919]
[1745590136883,6.41725959,1779.0,1778.4,1.22930919]
[1745590137387,0.7961,1779.0,1778.4,1.22930919]
[1745590137589,0.7961,1779.0,1778.4,6.85218093]
[1745590137790,0.7961,1779.0,1778.5,1.50601809]
[1745590138150,0.7961,1779.0,1778.5,0.8208]
[1745590138753,0.7961,1779.0,1778.5,12.61289819]
[1745590139056,0.7754,1779.2,1778.6,5.62223818]
[1745590139264,0.7754,1779.2,1778.7,5.495]
[1745590139561,0.31458224,1779.3,1778.9,5.62141163]
[1745590139774,0.31458224,1779.3,1779.1,0.7989]
[1745590139957,0.31458224,1779.3,1779.2,5.495]
[1745590140392,0.31458224,1779.6,1779.2,5.495]
[1745590141183,5.93394027,1779.6,1779.2,5.495]
[1745590141389,5.933824,1779.6,1779.2,5.495]
[1745590141774,5.6197466,1779.5,1779.2,5.495]
[1745590142098,5.62044698,1779.3,1778.9,5.494]
[1745590142679,5.62054518,1779.2,1778.9,5.494]
[1745590142995,0.815,1779.1,1778.9,5.494]
[1745590143190,6.43595575,1779.1,1778.9,5.494]
[1745590143365,6.43595575,1779.1,1778.6,0.8262]
[1745590143555,0.815,1779.1,1778.7,5.494]
[1745590143751,6.43604905,1779.1,1778.7,5.494]
[1745590143959,0.31458224,1779.0,1778.7,6.12602]
[1745590144576,0.31458224,1779.0,1778.7,5.494]
[1745590145985,5.62120166,1779.0,1778.7,5.494]
[1745590146299,5.9357839,1779.0,1778.7,5.494]
[1745590146515,5.62176748,1778.8,1778.7,5.494]
[1745590146658,5.6219135,1778.8,1778.5,5.494]
[1745590146970,5.93649574,1778.8,1778.5,5.494]
[1745590147175,0.31458224,1778.8,1778.5,5.494]
[1745590147486,0.31458224,1778.8,1778.5,6.12553]
[1745590148268,6.75324389,1778.8,1778.5,5.494]
[1745590148562,0.8168,1778.8,1778.5,5.494]
[1745590149784,5.62127232,1779.0,1778.6,0.7552]
[1745590149989,11.24269344,1779.0,1778.6,0.7552]
[1745590150314,1.1110411,1778.9,1778.5,5.494]
[1745590150490,1.1110411,1778.9,1778.5,6.0434]
[1745590150886,5.62186865,1778.8,1778.5,5.494]
[1745590151101,0.3149411,1778.8,1778.5,5.494]
[1745590151711,5.62239964,1778.6,1778.1,17.6711]
[1745590151894,5.93716382,1778.7,1778.4,5.495]
[1745590152290,0.3149411,1778.7,1778.4,5.495]
[1745590152492,0.3149411,1778.6,1778.4,6.0445]
[1745590152690,0.3149411,1778.6,1778.4,6.8496]
[1745590153286,0.3149411,1778.6,1778.4,0.8051]
[1745590153481,6.0,1779.0,1778.5,5.495]
[1745590153482,0.3149411,1778.7,1778.5,5.495]
[1745590153918,0.3149411,1778.7,1778.5,11.66449194]
[1745590154105,0.8254,1779.4,1778.9,5.62142984]
[1745590154306,6.44448036,1779.7,1779.0,5.495]
[1745590154505,5.61925448,1779.6,1779.1,0.5495]
[1745590154820,5.61925448,1779.6,1779.0,6.3217]
[1745590155243,5.61958162,1779.5,1779.0,6.3217]
[1745590155382,0.7677,1779.4,1778.6,0.8267]
[1745590155582,5.62096227,1779.1,1778.7,5.491]
[1745590155823,0.7899,1779.1,1778.7,6.12277]
[1745590156133,6.41079217,1779.1,1778.7,6.12277]
[1745590156287,6.41079217,1779.1,1778.7,5.491]
[1745590156617,6.41079217,1779.1,1778.7,5.49]
[1745590156618,6.41095625,1779.1,1778.7,5.49]
[1745590156844,6.41090533,1779.1,1778.7,5.49]
[1745590157020,0.7899,1779.1,1778.7,5.49]
[1745590157198,6.41074247,1779.1,1778.7,5.49]
[1745590157932,6.41086088,1779.1,1778.7,5.49]
[1745590158096,0.7899,1779.1,1778.7,5.49]
[1745590158297,9.42883129,1779.3,1778.7,6.039]
[1745590158699,0.8085,1779.3,1778.7,6.039]
[1745590159026,0.8085,1779.3,1778.7,11.66091535]
[1745590159438,11.61966044,1779.5,1778.8,0.7762]
[1745590159439,12.43686044,1779.5,1778.8,0.7762]
[1745590160148,6.43692831,1779.5,1778.8,3.7762]
[1745590160315,5.6198759,1779.4,1778.8,2.31992528]
[1745590160650,6.43692831,1779.5,1778.8,0.7762]
[1745590161142,0.8172,1779.5,1778.8,6.39794617]
[1745590161450,6.43675785,1779.5,1778.8,0.7762]
[1745590161941,6.43703168,1779.5,1778.8,0.7762]
[1745590162154,5.6201216,1779.4,1778.8,0.7762]
[1745590162302,3.8172,1779.5,1778.8,0.7762]
[1745590162506,5.62131325,1779.0,1778.1,22.48992553]
[1745590162742,6.37875615,1778.9,1778.2,6.2552]
[1745590163034,3.0,1779.0,1778.4,0.7715]
[1745590163442,5.62161192,1778.9,1778.4,0.7715]
[1745590163805,14.24266356,1779.0,1778.4,0.7715]
[1745590164006,6.0,1779.8,1778.9,6.16949194]
[1745590164207,6.0,1779.8,1779.0,6.2975]
[1745590164447,6.0,1779.8,1779.1,6.25052575]
[1745590164675,0.8224,1779.9,1779.2,0.7929]
[1745590164978,0.05,1779.9,1779.4,6.41251763]
[1745590165132,0.05,1779.9,1779.5,5.49]
[1745590165849,5.66841548,1779.9,1779.5,5.49]
[1745590166084,0.05,1779.9,1779.5,5.49]
[1745590167132,0.05,1779.9,1779.5,6.11829]
[1745590169133,0.05,1779.9,1779.5,11.73784142]
[1745590169349,0.05,1779.9,1779.5,6.11829]
[1745590170456,0.05,1779.9,1779.5,5.49]
[1745590170775,5.6683503,1779.9,1779.5,5.49]
[1745590171079,0.05,1779.9,1779.5,5.49]
[1745590171644,5.66847572,1779.9,1779.5,5.49]
[1745590171973,6.58193388,1779.8,1779.3,6.2609]
[1745590172404,6.58180767,1779.8,1779.3,6.88699]
[1745590172900,0.96311809,1779.8,1779.3,6.88699]
[1745590173299,0.15821809,1779.8,1779.3,6.88699]
[1745590173458,0.15821809,1779.8,1779.3,11.73408848]
[1745590173663,0.15821809,1779.8,1779.4,3.805]
[1745590173863,0.05,1779.9,1779.5,0.3805]
[1745590174062,0.15821809,1779.8,1779.4,0.805]
[1745590174260,6.42710059,1779.9,1779.4,0.805]
[1745590174507,5.77695065,1779.8,1779.4,0.805]
[1745590174675,0.15821809,1779.8,1779.4,0.805]
[1745590174880,0.05,1779.9,1779.4,0.805]
[1745590175076,0.1579784,1779.7,1779.4,1.99629896]
[1745590175277,0.15821809,1779.8,1779.4,1.99629896]
[1745590175482,0.15773868,1779.6,1779.4,0.805]
[1745590175816,5.66841942,1779.9,1779.4,0.805]
[1745590175965,0.15749894,1779.5,1779.4,0.805]
[1745590176165,5.66840831,1779.9,1779.4,0.805]
[1745590176411,0.15749894,1779.5,1779.4,0.805]
[1745590176576,0.05,1779.9,1779.4,1.4343]
[1745590177075,5.77689428,1779.8,1779.4,0.805]
[1745590177276,0.15821809,1779.8,1779.4,0.805]
[1745590177476,0.05,1779.9,1779.4,0.805]
[1745590177685,0.1579784,1779.7,1779.4,0.805]
[1745590177980,0.15821809,1779.8,1779.4,0.805]
[1745590178168,0.15773868,1779.6,1779.4,1.4343]
[1745590178371,0.05,1779.9,1779.4,1.4343]
[1745590178573,0.15749894,1779.5,1779.4,1.4343]
[1745590179101,0.05,1779.9,1779.4,1.4343]
[1745590179403,0.15749894,1779.5,1779.4,1.4343]
[1745590179644,0.05,1779.9,1779.4,1.4343]
[1745590179847,0.15821809,1779.8,1779.4,1.4343]
[1745590180047,0.15821809,1779.8,1779.4,7.60379194]
[1745590180231,0.05,1779.9,1779.4,7.60379194]
[1745590180232,0.1579784,1779.7,1779.4,7.60379194]
[1745590180549,0.05,1779.9,1779.5,0.76037919]
[1745590180746,0.05,1779.9,1779.4,1.4343]
[1745590180747,0.15773868,1779.6,1779.4,1.4343]
[1745590181155,0.05,1779.9,1779.4,1.4343]
[1745590181361,0.15749894,1779.5,1779.4,7.05417186]
[1745590181519,0.05,1779.9,1779.5,0.7798]
[1745590181858,0.15821809,1779.8,1779.5,0.7798]
[1745590182020,0.15821809,1779.8,1779.6,5.488]
[1745590182221,0.05,1779.9,1779.6,6.11478]
[1745590182719,0.15821809,1779.8,1779.6,6.11478]
[1745590182956,0.05,1779.9,1779.6,6.11478]
[1745590183114,0.1579784,1779.7,1779.5,0.7798]
[1745590183325,0.1579784,1779.7,1779.5,5.488]
[1745590183840,5.61895689,1779.7,1779.5,5.488]
[1745590184148,5.77697895,1779.6,1779.5,5.488]
[1745590184460,0.15773868,1779.6,1779.5,5.488]
[1745590184661,5.61893369,1779.7,1779.5,5.488]
[1745590184968,0.15773868,1779.6,1779.5,5.488]
[1745590185321,6.39015595,1779.8,1779.5,5.488]
[1745590185524,0.15773868,1779.6,1779.5,5.488]
[1745590185720,5.61924027,1779.6,1779.5,5.488]
[1745590185936,5.77697895,1779.6,1779.5,5.488]
[1745590186866,5.61924027,1779.6,1779.5,5.488]
[1745590188256,5.61924027,1779.6,1779.1,5.484]
[1745590188464,5.61924027,1779.6,1779.1,7.80152]
[1745590188667,5.61956392,1779.5,1779.1,7.80152]
[1745590189635,5.6190476,1779.7,1779.1,7.80152]
[1745590189832,11.23823908,1779.7,1779.1,7.80152]
[1745590190082,5.6190476,1779.7,1779.1,7.80152]
[1745590190381,5.61927089,1779.6,1779.1,7.80152]
[1745590190687,5.61976428,1779.5,1779.1,7.80152]
[1745590190831,12.01901971,1779.5,1779.1,5.484]
[1745590191034,6.39916428,1779.5,1779.1,5.484]
[1745590192373,5.62160685,1778.9,1778.6,0.7612]
[1745590192586,5.62160685,1778.9,1778.6,5.484]
[1745590193237,5.62130332,1779.0,1778.6,5.484]
[1745590193432,6.45017588,1779.1,1778.6,5.484]
[1745590193652,6.45017588,1779.1,1778.6,6.0324]
[1745590194143,5.62126785,1779.0,1778.6,6.0324]
[1745590195273,5.62166061,1778.9,1778.6,6.0324]
[1745590195442,5.62166061,1778.9,1778.6,5.484]
[1745590195944,5.62164047,1778.9,1778.6,5.484]
[1745590196478,5.62123258,1779.0,1778.6,5.484]
[1745590196634,5.62160322,1778.9,1778.6,5.484]
[1745590196989,5.62208354,1778.7,1778.6,5.484]
[1745590197190,6.38438354,1778.7,1778.6,5.484]
[1745590197665,5.6229368,1778.5,1778.2,6.3182]
[1745590197836,5.62314917,1778.4,1778.2,5.485]
[1745590198038,5.62334814,1778.3,1778.2,5.485]
[1745590198399,5.6232418,1778.4,1778.2,5.485]
[1745590199953,5.62290097,1778.5,1778.2,5.485]
[1745590200152,5.62313016,1778.4,1778.2,5.485]
[1745590200559,5.62284675,1778.5,1778.2,5.485]
[1745590200752,5.62284675,1778.5,1778.0,17.6806]
[1745590200753,5.62284675,1778.5,1778.0,0.8226]
[1745590200953,0.7674,1778.4,1778.0,0.8226]
[1745590201181,6.38961512,1778.7,1778.0,0.8226]
[1745590201382,5.62242381,1778.6,1778.0,0.8226]
[1745590201597,0.7674,1778.7,1778.0,0.8226]
[1745590201770,5.485,1779.0,1777.9,5.62451539]
[1745590201771,6.38876531,1779.0,1778.3,0.7666]
[1745590201976,11.24404207,1778.8,1778.4,5.487]
[1745590202188,5.62223864,1778.7,1778.4,5.487]
[1745590202393,5.62188488,1778.8,1778.4,5.487]
[1745590202590,5.62159756,1778.9,1778.4,5.487]
[1745590202794,5.6217772,1778.8,1778.4,5.487]
[1745590202974,5.62159756,1778.9,1778.4,5.487]
[1745590203178,5.62145604,1778.9,1778.4,6.11236]
[1745590203403,6.388727,1779.0,1778.4,6.11236]
[1745590203609,6.40186523,1779.2,1778.5,0.8316]
[1745590204213,0.7811,1779.2,1778.5,6.45419861]
[1745590204505,5.62135052,1779.0,1778.6,0.64541986]
[1745590204725,5.62155311,1778.9,1778.5,0.8316]
[1745590204909,5.62136867,1779.0,1778.5,0.8316]
[1745590205631,3.0,1779.1,1778.5,0.8316]
[1745590205632,5.62196518,1778.8,1778.5,0.8316]
[1745590205947,5.62167182,1778.9,1778.5,0.8316]
[1745590206220,5.62188386,1778.8,1778.5,0.8316]
[1745590206420,5.62131599,1779.0,1778.5,0.8316]
[1745590206626,5.62131599,1779.0,1778.5,1.46346]
[1745590206788,5.62154733,1778.9,1778.5,1.46346]
[1745590207123,5.62164745,1778.9,1778.5,0.8316]
[1745590207421,5.62182754,1778.8,1778.5,0.8316]
[1745590207740,5.62226096,1778.7,1778.4,5.487]
[1745590208040,5.62157596,1778.9,1778.4,5.487]
[1745590208187,8.62158127,1778.9,1778.4,6.11802]
[1745590208385,11.62096455,1779.1,1778.5,0.8157]
[1745590208690,5.62018771,1779.3,1778.5,0.8157]
[1745590208922,5.62108225,1779.1,1778.5,0.8157]
[1745590209243,5.62096347,1779.1,1778.5,0.8157]
[1745590210074,5.62165374,1778.9,1778.5,1.509072]
[1745590210231,5.62092641,1779.1,1778.5,1.509072]
[1745590210432,5.6215556,1778.9,1778.5,1.509072]
[1745590210942,3.0,1779.0,1778.5,1.509072]
[1745590211134,5.62171899,1778.9,1778.5,0.8157]
[1745590211657,5.62186172,1778.8,1778.5,0.8157]
[1745590212168,5.62269967,1778.6,1778.4,5.487]
[1745590212372,5.62265037,1778.6,1778.4,5.487]
[1745590212671,5.62263756,1778.6,1778.4,5.487]
[1745590213170,5.62208354,1778.7,1778.4,5.487]
[1745590213480,5.6222024,1778.7,1778.4,5.487]
[1745590213673,12.04910665,1778.8,1778.4,5.487]
[1745590213843,5.62217514,1778.7,1778.4,5.487]
[1745590214047,11.24449027,1778.7,1778.4,5.487]
[1745590214246,5.62217514,1778.7,1778.4,5.487]
[1745590214767,11.24453817,1778.7,1778.4,5.487]
[1745590214933,5.62244817,1778.6,1778.4,5.487]
[1745590215364,5.62222796,1778.7,1778.4,5.487]
[1745590215952,5.62336981,1778.3,1778.1,0.7617]
[1745590216152,6.0,1778.7,1778.1,0.7617]
[1745590216675,11.6222475,1778.7,1778.1,0.7617]
[1745590217160,5.62243734,1778.6,1778.1,0.7617]
[1745590217396,11.6222475,1778.7,1778.1,2.00301919]
[1745590218001,5.62263057,1778.6,1778.1,2.00301919]
[1745590218184,11.24532549,1778.6,1778.1,2.00301919]
[1745590218377,5.62263057,1778.6,1778.1,2.00301919]
[1745590218815,5.62241757,1778.6,1778.1,2.00301919]
[1745590218974,11.62227483,1778.7,1778.1,2.00301919]
[1745590220136,8.62158036,1778.9,1778.3,0.776]
[1745590220411,8.62148419,1778.9,1778.4,5.483]
[1745590220777,6.45335091,1779.0,1778.5,0.8188]
[1745590220987,5.62125091,1779.0,1778.5,0.8188]
[1745590221589,5.62186999,1778.8,1778.5,0.8188]
[1745590222119,5.62086542,1779.1,1778.4,5.483]
[1745590222120,0.7549,1779.0,1778.4,5.483]
[1745590222290,5.62261904,1778.6,1778.4,5.483]